fUST/lending_fUST_20250605
["ID","MTS","AMOUNT","RATE_DAILY","PERIOD"]
[364299244,1749063040551,-440.0,0.00020898,2]
[364299246,1749063040560,-631.53,0.00020899,2]
[364299247,1749063040569,-440.0,0.00020899,2]
[364299249,1749063040578,-440.0,0.00020899,2]
[364299251,1749063040588,-352.2716264,0.00020899,2]
[364299254,1749063040597,-440.0,0.00020899,2]
[364299256,1749063040607,-440.0,0.00020899,2]
[364299258,1749063040616,-440.0,0.00020899,2]
[364299259,1749063040628,-160.0,0.00021094,3]
[364299261,1749063040639,-151.30541512,0.00021099,2]
[364299263,1749063040652,-440.0,0.00021111,2]
[364299266,1749063040662,-1090.3,0.00021111,2]
[364299267,1749063040672,-234.40281128,0.00021111,2]
[364299269,1749063040682,-440.0,0.00021111,2]
[364299272,1749063040692,-440.0,0.00021111,2]
[364299273,1749063040702,-440.0,0.00021111,2]
[364299275,1749063040712,-440.0,0.00021111,2]
[364299277,1749063040722,-159.57316793,0.00021111,2]
[364299479,1749063042967,-164.9462809,0.00019011,2]
[364299481,1749063042977,-280.42683207,0.00021111,2]
[364299483,1749063042988,-440.0,0.00021111,2]
[364299485,1749063042998,-440.0,0.00021111,2]
[364299487,1749063043007,-562.77,0.00021112,2]
[364299489,1749063043016,-440.0,0.00021112,2]
[364299491,1749063043026,-440.0,0.00021112,2]
[364299493,1749063043035,-440.0,0.00021112,2]
[364299495,1749063043044,-440.0,0.00021112,2]
[364299497,1749063043053,-440.0,0.00021112,2]
[364299498,1749063043063,-440.0,0.00021112,2]
[364299500,1749063043075,-440.0,0.00021112,2]
[364299502,1749063043090,-440.0,0.00021112,2]
[364299505,1749063043100,-440.0,0.00021112,2]
[364299506,1749063043110,-440.0,0.00021112,2]
[364299508,1749063043120,-440.0,0.00021112,2]
[364299510,1749063043129,-440.0,0.00021112,2]
[364299513,1749063043147,-440.0,0.00021112,2]
[364299515,1749063043158,-440.0,0.00021112,2]
[364299518,1749063043169,-165.613,0.00021113,2]
[364299520,1749063043179,-440.0,0.00021113,2]
[364299522,1749063043188,-440.0,0.00021113,2]
[364299524,1749063043197,-440.0,0.00021113,2]
[364299526,1749063043207,-440.0,0.00021113,2]
[364299528,1749063043216,-440.0,0.00021113,2]
[364299530,1749063043226,-440.0,0.00021114,2]
[364299532,1749063043236,-440.0,0.00021114,2]
[364299534,1749063043245,-440.0,0.00021114,2]
[364299536,1749063043255,-440.0,0.00021114,2]
[364299538,1749063043266,-440.0,0.00021114,2]
[364299541,1749063043279,-396.61,0.00021114,2]
[364299542,1749063043291,-230.44,0.00021114,2]
[364299544,1749063043301,-440.0,0.00021114,2]
[364299547,1749063043311,-1200.0,0.00021164,2]
[364299548,1749063043321,-559.04,0.00021172,2]
[364299550,1749063043331,-440.0,0.00021172,2]
[364299553,1749063043341,-440.0,0.00021172,2]
[364299555,1749063043351,-440.0,0.00021172,2]
[364299557,1749063043360,-440.0,0.00021172,2]
[364299559,1749063043369,-440.0,0.00021172,2]
[364299560,1749063043379,-440.0,0.00021172,2]
[364299562,1749063043389,-440.0,0.00021172,2]
[364299564,1749063043398,-631.53,0.00021173,2]
[364299566,1749063043407,-440.0,0.00021173,2]
[364299569,1749063043417,-440.0,0.00021173,2]
[364299570,1749063043427,-440.0,0.00021173,2]
[364299573,1749063043437,-440.0,0.00021173,2]
[364299575,1749063043446,-440.0,0.00021173,2]
[364299577,1749063043456,-440.0,0.00021385,2]
[364299579,1749063043465,-410.7683908,0.00021385,2]
[364299581,1749063043479,-679.5316092,0.00021385,2]
[364299583,1749063043489,-546.06,0.00021385,2]
[364299585,1749063043499,-440.0,0.00021385,2]
[364299587,1749063043509,-440.0,0.00021385,2]
[364299589,1749063043519,-440.0,0.00021385,2]
[364299591,1749063043530,-330.0,0.00021385,2]
[364299593,1749063043539,-276.38323503,0.00021385,2]
[364299595,1749063043549,-440.0,0.00021386,2]
[364299597,1749063043560,-440.0,0.00021386,2]
[364299599,1749063043570,-340.0,0.00021386,2]
[364299601,1749063043579,-440.0,0.00021386,2]
[364299603,1749063043589,-440.0,0.00021386,2]
[364299605,1749063043600,-440.0,0.00021386,2]
[364299607,1749063043610,-440.0,0.00021386,2]
[364299609,1749063043619,-440.0,0.00021386,2]
[364299611,1749063043630,-440.0,0.00021386,2]
[364299613,1749063043639,-340.0,0.00021386,2]
[364299615,1749063043648,-440.0,0.00021386,2]
[364299617,1749063043658,-440.0,0.00021386,2]
[364299619,1749063043667,-440.0,0.00021386,2]
[364299621,1749063043676,-440.0,0.00021386,2]
[364299623,1749063043686,-440.0,0.00021387,2]
[364299625,1749063043695,-380.0,0.00021387,2]
[364299627,1749063043704,-440.0,0.00021387,2]
[364299646,1749063043875,-380.0,0.00021387,2]
[364299648,1749063043885,-440.0,0.00021387,2]
[364299650,1749063043895,-229.39,0.00021388,2]
[364299652,1749063043905,-440.0,0.00021388,2]
[364299654,1749063043914,-440.0,0.00021388,2]
[364299656,1749063043924,-440.0,0.00021388,2]
[364299658,1749063043933,-440.0,0.00021388,2]
[364299660,1749063043943,-440.0,0.00021388,2]
[364299662,1749063043952,-440.0,0.00021388,2]
[364299664,1749063043962,-236.08245655,0.00021437,2]
[364304639,1749063355256,500.0,0.00025,120]
[364304640,1749063373484,1000.0,0.00025,120]
[364304647,1749064032670,166.916959,0.00013699,2]
[364304706,1749064232130,-163.13211168,0.0001882,2]
[364304707,1749064232140,-1121.83693986,0.00018901,2]
[364304709,1749064232149,-6802.2947525,0.0001892,2]
[364304711,1749064232159,-1200.0,0.00019177,2]
[364304713,1749064232168,-277.924172,0.00019178,2]
[364304715,1749064232178,-300.0,0.0001954,2]
[364304717,1749064232188,-300.0,0.00019541,2]
[364304719,1749064232197,-10448.7505658,0.00019542,2]
[364304721,1749064232206,-440.0,0.00019833,2]
[364304722,1749064232216,-2438.48,0.00019833,2]
[364304724,1749064232225,-440.0,0.00019833,2]
[364304726,1749064232235,-440.0,0.00019833,2]
[364304728,1749064232244,-440.0,0.00019833,2]
[364304730,1749064232254,-440.0,0.00019833,2]
[364304732,1749064232263,-400.0,0.00019833,2]
[364304734,1749064232272,-400.0,0.00019833,2]
[364304736,1749064232281,-439.76593768,0.00019833,2]
[364304738,1749064232290,-440.0,0.00019833,2]
[364304740,1749064232299,-404.8708723,0.00019833,2]
[364304742,1749064232309,-440.0,0.00019833,2]
[364304744,1749064232318,-430.0,0.00019833,2]
[364304745,1749064232328,-430.0,0.00019833,2]
[364304747,1749064232339,-430.0,0.00019833,2]
[364304749,1749064232349,-440.0,0.00019833,2]
[364304751,1749064232358,-440.0,0.00019833,2]
[364304753,1749064232367,-430.0,0.00019833,2]
[364304755,1749064232377,-440.0,0.00019833,2]
[364304756,1749064232386,-440.0,0.00019833,2]
[364304758,1749064232396,-726.61,0.00019833,2]
[364304760,1749064232406,-430.0,0.00019833,2]
[364304762,1749064232415,-430.0,0.00019833,2]
[364304764,1749064232424,-400.98304236,0.00019833,2]
[364304765,1749064232434,-430.0,0.00019833,2]
[364304767,1749064232443,-400.0,0.00019833,2]
[364304769,1749064232453,-712.76,0.00019833,2]
[364304770,1749064232462,-440.0,0.00019833,2]
[364304772,1749064232472,-3912.7368997,0.00019833,3]
[364304774,1749064232482,-12700.62454678,0.00019834,2]
[364304776,1749064232498,-12199.37545322,0.00019834,2]
[364304778,1749064232508,-2342.15275768,0.000199,2]
[364304780,1749064232518,-160.0,0.00019945,2]
[364304782,1749064232527,-423.69433488,0.00020068,2]
[364304783,1749064232538,-229.45591648,0.00020068,2]
[364304784,1749064232547,-160.0,0.00020068,2]
[364304785,1749064232558,-1200.0,0.00020068,2]
[364304786,1749064232569,-60409.27471636,0.00020072,2]
[364304787,1749064232579,-2342.15275744,0.00020072,2]
[364304788,1749064232589,-440.0,0.00020107,2]
[364304789,1749064232599,-2438.48,0.00020107,2]
[364304790,1749064232608,-440.0,0.00020107,2]
[364304791,1749064232617,-440.0,0.00020107,2]
[364304792,1749064232627,-440.0,0.00020107,2]
[364304793,1749064232636,-440.0,0.00020107,2]
[364304794,1749064232646,-440.0,0.00020107,2]
[364304795,1749064232655,-726.61,0.00020107,2]
[364304796,1749064232664,-712.76,0.00020107,2]
[364304797,1749064232673,-440.0,0.00020107,2]
[364304798,1749064232683,-5000.0,0.00020193,2]
[364304799,1749064232692,-2342.15275744,0.00020245,2]
[364304800,1749064232702,-433.99041136,0.00020381,2]
[364304801,1749064232711,-2438.48,0.00020381,2]
[364304802,1749064232721,-440.0,0.00020381,2]
[364304803,1749064232730,-440.0,0.00020381,2]
[364304804,1749064232740,-440.0,0.00020381,2]
[364304805,1749064232750,-440.0,0.00020381,2]
[364304806,1749064232759,-440.0,0.00020381,2]
[364304807,1749064232768,-726.61,0.00020381,2]
[364304808,1749064232778,-712.76,0.00020381,2]
[364304809,1749064232788,-440.0,0.00020381,2]
[364304810,1749064232797,-2342.15275744,0.00020417,3]
[364304811,1749064232807,-2342.15275744,0.0002059,3]
[364304812,1749064232817,-2438.48,0.00020655,2]
[364304813,1749064232826,-440.0,0.00020655,2]
[364304814,1749064232837,-440.0,0.00020655,2]
[364304815,1749064232975,-440.0,0.00020655,2]
[364304816,1749064232984,-364.94652429,0.00020655,2]
[364304817,1749064232995,-440.0,0.00020655,2]
[364304818,1749064233005,-726.61,0.00020655,2]
[364304819,1749064233015,-712.76,0.00020655,2]
[364304820,1749064233025,-440.0,0.00020655,2]
[364304821,1749064233034,-2342.15275744,0.00020762,3]
[364304822,1749064233044,-526.43422349,0.00020797,2]
[364304823,1749064233054,-12672.94222187,0.00020895,2]
[364304824,1749064233063,-445.99,0.00020896,2]
[364304825,1749064233073,-1184.69,0.00020896,2]
[364304826,1749064233083,-1075.48,0.00020896,2]
[364304827,1749064233093,-430.0,0.00020896,2]
[364304828,1749064233103,-440.0,0.00020896,2]
[364304829,1749064233113,-440.0,0.00020896,2]
[364304830,1749064233123,-440.0,0.00020896,2]
[364304831,1749064233133,-440.0,0.00020896,2]
[364304832,1749064233143,-400.0,0.00020896,2]
[364304833,1749064233153,-430.0,0.00020896,2]
[364304834,1749064233163,-440.0,0.00020896,2]
[364304835,1749064233173,-440.0,0.00020896,2]
[364304836,1749064233183,-430.0,0.00020896,2]
[364304837,1749064233193,-430.0,0.00020896,2]
[364304838,1749064233204,-440.0,0.00020896,2]
[364304839,1749064233214,-400.0,0.00020896,2]
[364304840,1749064233225,-440.0,0.00020896,2]
[364304841,1749064233236,-440.0,0.00020896,2]
[364304842,1749064233246,-440.0,0.00020896,2]
[364304843,1749064233257,-440.0,0.00020896,2]
[364304844,1749064233266,-440.0,0.00020896,2]
[364304845,1749064233276,-440.0,0.00020896,2]
[364304846,1749064233286,-434.13114532,0.00020897,2]
[364304847,1749064233296,-431.88021261,0.00020897,2]
[364304848,1749064233305,-440.0,0.00020897,2]
[364304849,1749064233316,-375.30120065,0.00020897,2]
[364304850,1749064233326,-432.3694075,0.00020897,2]
[364304851,1749064233337,-440.0,0.00020897,2]
[364304852,1749064233347,-430.0,0.00020897,2]
[364304853,1749064233357,-430.0,0.00020897,2]
[364304854,1749064233368,-182.25591215,0.00020897,2]
[364304855,1749064233378,-430.0,0.00020897,2]
[364304856,1749064233388,-430.0,0.00020897,2]
[364304857,1749064233397,-500.0,0.00020897,2]
[364304858,1749064233407,-430.0,0.00020897,2]
[364304859,1749064233418,-430.0,0.00020897,2]
[364304860,1749064233427,-430.0,0.00020897,2]
[364304861,1749064233437,-430.0,0.00020897,2]
[364304862,1749064233447,-430.0,0.00020897,2]
[364304863,1749064233457,-430.0,0.00020897,2]
[364304864,1749064233467,-440.0,0.00020897,2]
[364304865,1749064233477,-430.0,0.00020897,2]
[364304866,1749064233487,-440.0,0.00020897,2]
[364304867,1749064233500,-430.0,0.00020897,2]
[364304868,1749064233510,-430.0,0.00020897,2]
[364304869,1749064233520,-431.8036436,0.00020897,2]
[364304870,1749064233531,-430.0,0.00020897,2]
[364304871,1749064233542,-431.53847772,0.00020897,2]
[364304872,1749064233554,-430.0,0.00020897,2]
[364304873,1749064233564,-430.0,0.00020897,2]
[364304874,1749064233574,-250.0,0.00020897,2]
[364304875,1749064233585,-430.54229912,0.00020897,2]
[364304876,1749064233595,-430.0,0.00020897,2]
[364304877,1749064233605,-307.65016216,0.00020897,2]
[364304878,1749064233615,-440.0,0.00020897,2]
[364304879,1749064233624,-430.0,0.00020897,2]
[364304880,1749064233633,-430.0,0.00020897,2]
[364304881,1749064233643,-440.0,0.00020897,2]
[364304882,1749064233652,-440.0,0.00020897,2]
[364304883,1749064233664,-440.0,0.00020897,2]
[364304884,1749064233673,-430.0,0.00020897,2]
[364304885,1749064233683,-400.90786718,0.00020897,2]
[364304886,1749064233693,-440.0,0.00020897,2]
[364304887,1749064233702,-430.0,0.00020897,2]
[364304888,1749064233713,-430.0,0.00020897,2]
[364304889,1749064233723,-430.0,0.00020897,2]
[364304890,1749064233733,-430.0,0.00020897,2]
[364304891,1749064233743,-430.0,0.00020897,2]
[364304892,1749064233753,-440.0,0.00020897,2]
[364304893,1749064233763,-513.29060339,0.00020897,2]
[364304894,1749064233773,-430.0,0.00020897,2]
[364304895,1749064233782,-500.65416939,0.00020897,2]
[364304896,1749064233792,-430.0,0.00020897,2]
[364304897,1749064233801,-440.0,0.00020897,2]
[364304898,1749064233811,-430.0,0.00020897,2]
[364304899,1749064233820,-184.58857417,0.00020897,2]
[364304900,1749064233830,-430.0,0.00020897,2]
[364304901,1749064233841,-430.0,0.00020897,2]
[364304902,1749064233851,-430.0,0.00020897,2]
[364304903,1749064233860,-430.0,0.00020897,2]
[364304904,1749064233869,-440.0,0.00020897,2]
[364304905,1749064233880,-430.0,0.00020897,2]
[364304906,1749064233890,-487.60182754,0.00020897,2]
[364304907,1749064233900,-440.0,0.00020897,2]
[364304908,1749064233910,-440.0,0.00020897,2]
[364304909,1749064233920,-440.0,0.00020897,2]
[364304910,1749064233931,-440.0,0.00020897,2]
[364304911,1749064233941,-352.53912567,0.00020897,2]
[364304912,1749064233951,-440.0,0.00020897,2]
[364304913,1749064233960,-440.0,0.00020897,2]
[364304914,1749064233970,-195.56652612,0.00020897,2]
[364304915,1749064233979,-405.6209266,0.00020897,2]
[364304916,1749064233990,-440.0,0.00020897,2]
[364304917,1749064234001,-430.0,0.00020897,2]
[364304918,1749064234011,-430.0,0.00020897,2]
[364304919,1749064234022,-432.28856942,0.00020897,2]
[364304920,1749064234032,-440.0,0.00020897,2]
[364304921,1749064234042,-440.0,0.00020897,2]
[364304922,1749064234051,-440.0,0.00020897,2]
[364304923,1749064234061,-430.0,0.00020897,2]
[364304924,1749064234071,-440.0,0.00020897,2]
[364304925,1749064234080,-430.0,0.00020897,2]
[364304926,1749064234091,-440.0,0.00020897,2]
[364304927,1749064234101,-440.0,0.00020897,2]
[364304928,1749064234110,-440.0,0.00020897,2]
[364304929,1749064234120,-440.0,0.00020897,2]
[364304930,1749064234130,-388.10969617,0.00020897,2]
[364304931,1749064234140,-440.0,0.00020897,2]
[364304932,1749064234150,-440.0,0.00020897,2]
[364304933,1749064234160,-430.0,0.00020897,2]
[364304934,1749064234169,-430.0,0.00020897,2]
[364304935,1749064234179,-578.54649738,0.00020897,2]
[364304936,1749064234189,-300.0,0.00020897,2]
[364304937,1749064234199,-430.0,0.00020897,2]
[364304938,1749064234209,-440.0,0.00020897,2]
[364304939,1749064234222,-440.0,0.00020897,2]
[364304940,1749064234232,-440.0,0.00020897,2]
[364304941,1749064234242,-440.0,0.00020897,2]
[364304942,1749064234253,-430.0,0.00020897,2]
[364304943,1749064234264,-440.0,0.00020897,2]
[364304944,1749064234275,-430.0,0.00020897,2]
[364304945,1749064234285,-440.0,0.00020897,2]
[364304946,1749064234296,-440.0,0.00020897,2]
[364304947,1749064234306,-609.47,0.00020897,2]
[364304948,1749064234315,-440.0,0.00020897,2]
[364304949,1749064234325,-430.0,0.00020897,2]
[364304950,1749064234335,-515.45,0.00020897,2]
[364304951,1749064234345,-440.0,0.00020897,2]
[364304952,1749064234355,-440.0,0.00020897,2]
[364304953,1749064234365,-430.91758074,0.00020897,2]
[364304954,1749064234375,-440.0,0.00020897,2]
[364304955,1749064234385,-440.0,0.00020897,2]
[364304956,1749064234395,-430.0,0.00020897,2]
[364304957,1749064234404,-440.0,0.00020897,2]
[364304958,1749064234414,-440.0,0.00020897,2]
[364304959,1749064234424,-440.0,0.00020897,2]
[364304960,1749064234434,-440.0,0.00020897,2]
[364304961,1749064234444,-440.0,0.00020897,2]
[364304962,1749064234453,-440.0,0.00020897,2]
[364304963,1749064234463,-440.0,0.00020897,2]
[364304964,1749064234473,-440.0,0.00020897,2]
[364304965,1749064234483,-430.0,0.00020897,2]
[364304966,1749064234497,-440.0,0.00020897,2]
[364304967,1749064234506,-430.0,0.00020897,2]
[364304968,1749064234515,-440.0,0.00020897,2]
[364304969,1749064234526,-440.0,0.00020897,2]
[364304970,1749064234537,-440.0,0.00020897,2]
[364304971,1749064234548,-430.0,0.00020897,2]
[364304972,1749064234558,-440.0,0.00020897,2]
[364304973,1749064234568,-440.0,0.00020897,2]
[364304974,1749064234579,-430.0,0.00020897,2]
[364304975,1749064234589,-430.0,0.00020897,2]
[364304976,1749064234599,-440.0,0.00020897,2]
[364304977,1749064234608,-430.0,0.00020897,2]
[364304978,1749064234618,-430.0,0.00020897,2]
[364304979,1749064234627,-440.0,0.00020897,2]
[364304980,1749064234636,-430.0,0.00020897,2]
[364304981,1749064234646,-440.0,0.00020897,2]
[364304982,1749064234657,-430.0,0.00020897,2]
[364304983,1749064234668,-440.0,0.00020897,2]
[364304984,1749064234678,-440.0,0.00020897,2]
[364304985,1749064234687,-401.38747886,0.00020897,2]
[364304986,1749064234697,-430.0,0.00020897,2]
[364304987,1749064234706,-241.0676484,0.00020897,2]
[364304988,1749064234717,-432.21527717,0.00020897,2]
[364304989,1749064234726,-440.0,0.00020897,2]
[364304990,1749064234736,-430.0,0.00020897,2]
[364304991,1749064234745,-440.0,0.00020897,2]
[364304992,1749064234756,-430.0,0.00020897,2]
[364304993,1749064234766,-430.0,0.00020897,2]
[364304994,1749064234776,-440.0,0.00020897,2]
[364304995,1749064234785,-511.6223811,0.00020897,2]
[364304996,1749064234794,-430.0,0.00020897,2]
[364304997,1749064234803,-430.0,0.00020897,2]
[364304998,1749064234813,-440.0,0.00020897,2]
[364304999,1749064234823,-440.0,0.00020897,2]
[364305000,1749064234832,-430.0,0.00020897,2]
[364305001,1749064234842,-430.0,0.00020897,2]
[364305002,1749064234851,-430.0,0.00020897,2]
[364305003,1749064234860,-430.0,0.00020897,2]
[364305004,1749064234870,-214.01649776,0.00020897,2]
[364305005,1749064234880,-546.42092084,0.00020897,2]
[364305006,1749064234890,-400.85062722,0.00020897,2]
[364305007,1749064234900,-430.0,0.00020897,2]
[364305008,1749064234909,-440.0,0.00020897,2]
[364305009,1749064234919,-430.0,0.00020897,2]
[364305010,1749064234929,-430.0,0.00020897,2]
[364305011,1749064234938,-430.0,0.00020897,2]
[364305012,1749064234948,-430.0,0.00020897,2]
[364305013,1749064234957,-211.07346855,0.00020897,2]
[364305014,1749064234967,-440.0,0.00020897,2]
[364305015,1749064234976,-440.0,0.00020897,2]
[364305016,1749064234986,-440.0,0.00020897,2]
[364305017,1749064234995,-440.0,0.00020897,2]
[364305018,1749064235005,-430.0,0.00020897,2]
[364305019,1749064235015,-440.0,0.00020897,2]
[364305020,1749064235025,-430.0,0.00020897,2]
[364305021,1749064235035,-430.0,0.00020897,2]
[364305022,1749064235044,-430.0,0.00020897,2]
[364305023,1749064235053,-430.0,0.00020897,2]
[364305024,1749064235063,-430.0,0.00020897,2]
[364305025,1749064235072,-440.0,0.00020897,2]
[364305026,1749064235082,-362.63018133,0.00020897,2]
[364305027,1749064235091,-400.0,0.00020897,2]
[364305028,1749064235101,-430.0,0.00020897,2]
[364305029,1749064235110,-430.0,0.00020897,2]
[364305030,1749064235120,-440.0,0.00020897,2]
[364305031,1749064235130,-450.0,0.00020897,2]
[364305032,1749064235139,-440.0,0.00020897,2]
[364305033,1749064235148,-440.0,0.00020897,2]
[364305034,1749064235158,-430.0,0.00020897,2]
[364305035,1749064235167,-440.0,0.00020897,2]
[364305036,1749064235178,-370.0,0.00020897,2]
[364305037,1749064235187,-450.0,0.00020897,2]
[364305038,1749064235197,-440.0,0.00020897,2]
[364305039,1749064235206,-440.0,0.00020897,2]
[364305040,1749064235216,-430.0,0.00020897,2]
[364305041,1749064235226,-440.0,0.00020897,2]
[364305042,1749064235236,-430.0,0.00020897,2]
[364305043,1749064235245,-430.0,0.00020897,2]
[364305044,1749064235255,-440.0,0.00020897,2]
[364305045,1749064235264,-440.0,0.00020897,2]
[364305046,1749064235274,-430.0,0.00020897,2]
[364305047,1749064235283,-420.0,0.00020897,2]
[364305048,1749064235292,-440.0,0.00020897,2]
[364305049,1749064235302,-440.0,0.00020897,2]
[364305050,1749064235311,-430.0,0.00020897,2]
[364305051,1749064235321,-430.0,0.00020897,2]
[364305052,1749064235331,-993.69,0.000209,2]
[364305053,1749064235341,-2438.48,0.00020929,2]
[364305054,1749064235350,-420.0,0.00020929,2]
[364305055,1749064235361,-420.0,0.00020929,2]
[364305056,1749064235371,-440.0,0.00020929,2]
[364305057,1749064235381,-440.0,0.00020929,2]
[364305058,1749064235390,-726.61,0.00020929,2]
[364305059,1749064235399,-712.76,0.00020929,2]
[364305060,1749064235408,-440.0,0.00020929,2]
[364305061,1749064235417,-2342.15275744,0.00020934,4]
[364305062,1749064235427,-253.97,0.0002101,2]
[364305063,1749064235437,-2342.15275744,0.00021107,4]
[364305064,1749064235447,-500.0,0.0002111,2]
[364305065,1749064235456,-440.0,0.0002111,2]
[364305066,1749064235467,-609.47,0.0002111,2]
[364305067,1749064235479,-985.64,0.0002111,2]
[364305068,1749064235491,-440.0,0.0002111,2]
[364305069,1749064235504,-1546.63,0.0002111,2]
[364305070,1749064235515,-485.7,0.0002111,2]
[364305071,1749064235524,-440.0,0.0002111,2]
[364305072,1749064235534,-400.67596319,0.0002111,2]
[364305073,1749064235545,-440.0,0.0002111,2]
[364305074,1749064235554,-440.0,0.00021111,2]
[364305075,1749064235564,-391.70334469,0.00021111,2]
[364305076,1749064235574,-403.48951065,0.00021111,2]
[364305077,1749064235584,-440.0,0.00021111,2]
[364305078,1749064235594,-440.0,0.00021111,2]
[364305079,1749064235603,-440.0,0.00021111,2]
[364305080,1749064235613,-440.0,0.00021111,2]
[364305081,1749064235623,-356.68708832,0.00021111,2]
[364305082,1749064235632,-410.0,0.00021111,2]
[364305083,1749064235643,-440.0,0.00021111,2]
[364305084,1749064235653,-440.0,0.00021111,2]
[364305085,1749064235663,-440.0,0.00021111,2]
[364305086,1749064235674,-440.0,0.00021111,2]
[364305087,1749064235685,-400.0,0.00021111,2]
[364305088,1749064235695,-430.0,0.00021111,2]
[364305089,1749064235706,-430.0,0.00021111,2]
[364305090,1749064235717,-440.0,0.00021111,2]
[364305091,1749064235727,-503.07908642,0.00021111,2]
[364305092,1749064235737,-440.0,0.00021111,2]
[364305093,1749064235748,-431.18444022,0.00021111,2]
[364305094,1749064235758,-440.0,0.00021111,2]
[364305095,1749064235768,-430.0,0.00021111,2]
[364305096,1749064235777,-440.0,0.00021111,2]
[364305097,1749064235786,-440.0,0.00021111,2]
[364305098,1749064235796,-440.0,0.00021111,2]
[364305099,1749064235805,-440.0,0.00021111,2]
[364305100,1749064235815,-497.23957926,0.00021111,2]
[364305101,1749064235824,-440.0,0.00021111,2]
[364305102,1749064235835,-430.0,0.00021111,2]
[364305103,1749064235945,-430.0,0.00021111,2]
[364305104,1749064235954,-430.0,0.00021111,2]
[364305105,1749064235963,-440.0,0.00021111,2]
[364305106,1749064235973,-474.19,0.00021111,2]
[364305107,1749064235983,-430.0,0.00021111,2]
[364305108,1749064235993,-430.0,0.00021111,2]
[364305109,1749064236002,-440.0,0.00021111,2]
[364305110,1749064236012,-440.0,0.00021111,2]
[364305111,1749064236022,-440.0,0.00021111,2]
[364305112,1749064236031,-457.03698808,0.00021111,2]
[364305113,1749064236041,-445.04,0.00021111,2]
[364305114,1749064236051,-1248.16,0.00021111,2]
[364305115,1749064236060,-440.0,0.00021111,2]
[364305116,1749064236069,-420.0,0.00021111,2]
[364305117,1749064236078,-430.0,0.00021111,2]
[364305118,1749064236089,-440.0,0.00021111,2]
[364305119,1749064236098,-400.0,0.00021111,2]
[364305120,1749064236107,-440.0,0.00021111,2]
[364305121,1749064236117,-440.0,0.00021111,2]
[364305122,1749064236126,-440.0,0.00021111,2]
[364305123,1749064236136,-957.89,0.00021111,2]
[364305124,1749064236145,-440.0,0.00021111,2]
[364305125,1749064236155,-440.0,0.00021111,2]
[364305126,1749064236164,-465.53,0.00021111,2]
[364305127,1749064236174,-440.0,0.00021111,2]
[364305128,1749064236183,-440.0,0.00021111,2]
[364305129,1749064236192,-440.0,0.00021111,2]
[364305130,1749064236201,-420.0,0.00021111,2]
[364305131,1749064236211,-430.0,0.00021111,2]
[364305132,1749064236219,-181.85358678,0.00021111,2]
[364305133,1749064236229,-437.51963141,0.00021111,2]
[364305134,1749064236238,-440.0,0.00021111,2]
[364305135,1749064236247,-440.0,0.00021111,2]